fUSD/lending_fUSD_20260420
["ID","MTS","AMOUNT","RATE_DAILY","PERIOD"]
[420861943,1776657045596,-300.0,0.00011999,2]
[420861944,1776657045605,-304.36859545,0.00011999,2]
[420861945,1776657045615,-1099.74839022,0.00011999,3]
[420861946,1776657045624,-3920537.67115091,0.00012,2]
[420861948,1776657047017,-185.04929507,0.00010259,2]
[420861949,1776657047027,-207.16083899,0.00010959,2]
[420861950,1776657047036,-416.923,0.00011007,2]
[420861951,1776657047046,-270.65226594,0.00011193,2]
[420861952,1776657047062,-824.67443515,0.00011193,2]
[420861953,1776657047071,-185.04929507,0.0001199,2]
[420861954,1776657047081,-185.04929507,0.0001199,2]
[420861955,1776657047090,-1123.17697471,0.00012,2]
[420861957,1776657145824,150.64,8.716e-05,2]
[420861958,1776657182683,262.0,8.9e-05,2]
[420861959,1776657187621,200.0,8.716e-05,3]
[420861960,1776657246706,190.0,8.716e-05,3]
[420861961,1776657306620,181.0,8.716e-05,3]
[420861962,1776657307292,157.0,8.716e-05,3]
[420861963,1776657346132,295.72981494,9.31e-05,30]
[420861964,1776657347391,443.59472242,9.61e-05,30]
[420861966,1776657368272,171.0,8.716e-05,3]
[420861967,1776657435115,175.0,8.716e-05,3]
[420861968,1776657487415,151.0,8.716e-05,3]
[420861971,1776657559649,-175.0,8.716e-05,3]
[420861972,1776657611880,151.0,8.716e-05,3]
[420861973,1776657623341,174.14,7.212e-05,2]
[420861975,1776657722694,-153.0,8.716e-05,3]
[420861976,1776657727604,155.0,8.716e-05,3]
[420861977,1776657785773,155.0,8.716e-05,3]
[420861979,1776657907955,155.0,8.716e-05,3]
[420861980,1776657929238,-200.0,8.952e-05,2]
[420861982,1776657988731,-155.0,8.716e-05,3]
[420861983,1776658026024,155.0,8.716e-05,3]
[420861984,1776658086951,155.0,8.716e-05,3]
[420861985,1776658094860,-166.92,8.809e-05,2]
[420861986,1776658163849,-1500.0,8.772e-05,2]
[420861989,1776658215523,-155.0,8.716e-05,3]
[420862002,1776658232016,-150.07,8.849e-05,2]
[420862004,1776658232026,-249.93,9.113e-05,2]
[420862005,1776658232037,-10.07,9.113e-05,2]
[420862006,1776658232047,-1701.16017621,9.167e-05,2]
[420862007,1776658232058,-700.37599953,9.167e-05,2]
[420862008,1776658232069,-303.8818997,9.167e-05,2]
[420862009,1776658232092,-1794.91678006,9.167e-05,2]
[420862010,1776658232102,-327.45811454,9.167e-05,2]
[420862011,1776658232113,-300.0,9.221e-05,2]
[420862012,1776658232123,-300.0,9.221e-05,2]
[420862013,1776658232134,-150.0,9.222e-05,2]
[420862014,1776658232144,-150.0,9.222e-05,2]
[420862015,1776658232155,-150.0,9.222e-05,2]
[420862016,1776658232165,-28.04075409,9.222e-05,2]
[420862017,1776658232176,-121.95924591,9.222e-05,2]
[420862018,1776658232186,-150.76576656,9.222e-05,2]
[420862019,1776658232195,-112.27792009,9.222e-05,2]
[420862020,1776658232207,-37.72207991,9.222e-05,2]
[420862021,1776658232216,-150.0,9.222e-05,2]
[420862022,1776658232226,-151.03787675,9.222e-05,2]
[420862023,1776658232235,-150.0,9.222e-05,2]
[420862024,1776658232245,-150.0,9.222e-05,2]
[420862025,1776658232254,-150.0,9.222e-05,2]
[420862026,1776658232264,-150.0,9.222e-05,2]
[420862027,1776658232273,-150.0,9.222e-05,2]
[420862028,1776658232283,-150.0,9.31e-05,2]
[420862029,1776658232293,-150.0,9.393e-05,2]
[420862030,1776658232303,-4822.04832228,9.403e-05,2]
[420862031,1776658232314,-312.37517135,9.403e-05,2]
[420862032,1776658232326,-1512.86999631,9.403e-05,2]
[420862033,1776658232338,-413.48160874,9.403e-05,2]
[420862034,1776658232349,-7283.02287851,9.403e-05,2]
[420862035,1776658232361,-1149.99016759,9.403e-05,2]
[420862036,1776658232372,-1558.46514446,9.403e-05,2]
[420862037,1776658232382,-150.0,9.427e-05,2]
[420862038,1776658232392,-150.0,9.477e-05,2]
[420862039,1776658232402,-150.0,9.478e-05,2]
[420862040,1776658232413,-150.0,9.478e-05,2]
[420862041,1776658232422,-150.0,9.563e-05,2]
[420862042,1776658232431,-150.0,9.563e-05,2]
[420862043,1776658232441,-150.0,9.61e-05,2]
[420862044,1776658232450,-150.0,9.612e-05,2]
[420862045,1776658232459,-239.18,9.631e-05,2]
[420862046,1776658232469,-150.0,9.632e-05,2]
[420862047,1776658232478,-166.92,9.69e-05,2]
[420862048,1776658232488,-200.0,9.7e-05,3]
[420862049,1776658232497,-150.0,9.734e-05,2]
[420862050,1776658232507,-150.0,9.734e-05,2]
[420862051,1776658232516,-150.0,9.734e-05,2]
[420862052,1776658232526,-3748.45497006,9.758e-05,2]
[420862053,1776658232535,-59685.13397802,9.762e-05,2]
[420862054,1776658232547,-8067.00672546,9.762e-05,2]
[420862055,1776658232559,-180050.64689744,9.762e-05,2]
[420862056,1776658232574,-417.51182976,9.762e-05,2]
[420862057,1776658232585,-971.72153587,9.762e-05,2]
[420862058,1776658232597,-2000.0,9.762e-05,2]
[420862059,1776658232608,-273.719,9.762e-05,2]
[420862060,1776658232647,-1216.57072602,9.762e-05,2]
[420862061,1776658232658,-2649.0,9.762e-05,2]
[420862072,1776658233222,-166.31252049,9.761e-05,2]
[420862073,1776658233231,-500.0,9.761e-05,2]
[420862074,1776658233241,-500.0,9.761e-05,2]
[420862075,1776658233250,-96.03347951,9.762e-05,2]
[420862076,1776658233262,-1049.24108504,9.762e-05,2]
[420862080,1776658238184,-500.0,9.761e-05,2]
[420862081,1776658238194,-641.93210627,9.761e-05,2]
[420862082,1776658238203,-411.89151724,9.761e-05,2]
[420862083,1776658238212,-500.0,9.761e-05,2]
[420862084,1776658238222,-242.4543694,9.761e-05,2]
[420862085,1776658238231,-500.0,9.761e-05,2]
[420862086,1776658238240,-16631.19488036,9.762e-05,2]
[420862087,1776658238252,-73880.72613247,9.762e-05,2]
[420862088,1776658238273,-1756.59023005,9.762e-05,2]
[420862089,1776658238282,-456.0,9.773e-05,2]
[420862090,1776658238291,-177.32695554,9.792e-05,2]
[420862091,1776658238300,-400.0,9.8e-05,3]
[420862092,1776658238310,-384.0,9.813e-05,2]
[420862093,1776658238319,-403.0,9.832e-05,2]
[420862094,1776658238328,-150.0,9.837e-05,2]
[420862095,1776658238337,-630.08281441,9.851e-05,2]
[420862096,1776658238357,-6.91718559,9.851e-05,2]
[420862097,1776658238366,-331.0,9.852e-05,2]
[420862098,1776658238375,-29508.46016723,9.862e-05,2]
[420862099,1776658238384,-1903.0,9.87e-05,2]
[420862100,1776658238394,-425.0,9.871e-05,2]
[420862101,1776658238403,-1651.0,9.88e-05,2]
[420862102,1776658238412,-161.0,9.88e-05,2]
[420862103,1776658238422,-562.0,9.89e-05,2]
[420862104,1776658238431,-500.0,9.89e-05,2]
[420862105,1776658238440,-241.0,9.891e-05,2]
[420862106,1776658238449,-469.0,9.899e-05,2]
[420862107,1776658238459,-700.0,9.9e-05,3]
[420862108,1776658238468,-500.0,9.903e-05,2]
[420862109,1776658238477,-500.0,9.903e-05,2]
[420862110,1776658238487,-500.0,9.903e-05,2]
[420862111,1776658238496,-501.57417914,9.903e-05,2]
[420862112,1776658238506,-500.0,9.903e-05,2]
[420862113,1776658238515,-500.0,9.903e-05,2]
[420862114,1776658238524,-500.0,9.903e-05,2]
[420862115,1776658238533,-641.09102086,9.903e-05,2]
[420862116,1776658238542,-500.0,9.903e-05,2]
[420862117,1776658238551,-266.21884744,9.903e-05,2]
[420862118,1776658238561,-500.0,9.903e-05,2]
[420862119,1776658238570,-150.0,9.905e-05,2]
[420862120,1776658238579,-150.0,9.905e-05,2]
[420862121,1776658238588,-687.0,9.91e-05,2]
[420862122,1776658238598,-173.0,9.911e-05,2]
[420862123,1776658238608,-250.0,9.911e-05,2]
[420862124,1776658238618,-784.15865975,9.923e-05,2]
[420862125,1776658238627,-784.15865975,9.923e-05,2]
[420862127,1776658238637,-784.15865975,9.923e-05,2]
[420862129,1776658238646,-784.15865975,9.923e-05,2]
[420862131,1776658238655,-784.15865975,9.923e-05,2]
[420862133,1776658238665,-784.15865975,9.923e-05,2]
[420862135,1776658238674,-784.15865975,9.923e-05,2]
[420862137,1776658238683,-784.15865975,9.923e-05,2]
[420862139,1776658238693,-784.15865975,9.923e-05,2]
[420862141,1776658238702,-784.15865975,9.923e-05,2]
[420862143,1776658238711,-784.15865975,9.923e-05,2]
[420862145,1776658238720,-784.15865975,9.923e-05,2]
[420862147,1776658238729,-513.18342684,9.923e-05,2]
[420862382,1776658241183,-267.35689552,9.923e-05,2]
[420862386,1776658241211,-3.61833739,9.923e-05,2]
[420862387,1776658241220,-784.15865975,9.923e-05,2]
[420862388,1776658241229,-784.15865975,9.923e-05,2]
[420862389,1776658241238,-784.15865975,9.923e-05,2]
[420862390,1776658241247,-784.15865975,9.923e-05,2]
[420862391,1776658241256,-784.15865975,9.923e-05,2]
[420862392,1776658241266,-55.79928368,9.923e-05,2]
[420862393,1776658241277,-728.35937607,9.923e-05,2]
[420862394,1776658241286,-784.15865975,9.923e-05,2]
[420862395,1776658241296,-371.61937532,9.923e-05,2]
[420862396,1776658241318,-412.53928443,9.923e-05,2]
[420862397,1776658241328,-784.15865975,9.923e-05,2]
[420862398,1776658241337,-784.15865975,9.923e-05,2]
[420862399,1776658241346,-784.15865975,9.923e-05,2]
[420862400,1776658241356,-761.73473632,9.923e-05,2]
[420862401,1776658241379,-22.42392343,9.923e-05,2]
[420862402,1776658241388,-784.15865975,9.923e-05,2]
[420862403,1776658241398,-644.22053074,9.923e-05,2]
[420862404,1776658241416,-139.93812901,9.923e-05,2]
[420862405,1776658241906,-784.15865975,9.923e-05,2]
[420862406,1776658241941,-784.15865975,9.923e-05,2]
[420862407,1776658241951,-784.15865975,9.923e-05,2]
[420862408,1776658241961,-784.15865975,9.923e-05,2]
[420862409,1776658241970,-784.15865975,9.923e-05,2]
[420862410,1776658241979,-784.15865975,9.923e-05,2]
[420862411,1776658241988,-784.15865975,9.923e-05,2]
[420862412,1776658241998,-784.15865975,9.923e-05,2]
[420862413,1776658242007,-784.15865975,9.923e-05,2]
[420862414,1776658242017,-784.15865975,9.923e-05,2]
[420862415,1776658242026,-784.15865975,9.923e-05,2]
[420862416,1776658242035,-784.15865975,9.923e-05,2]
[420862417,1776658242044,-784.15865975,9.923e-05,2]
[420862418,1776658242054,-784.15865975,9.923e-05,2]
[420862419,1776658242063,-784.15865975,9.923e-05,2]
[420862420,1776658242073,-784.15865975,9.923e-05,2]
[420862421,1776658242082,-784.15865975,9.923e-05,2]
[420862422,1776658242092,-784.15865975,9.923e-05,2]
[420862423,1776658242101,-784.15865975,9.923e-05,2]
[420862424,1776658242111,-784.15865975,9.923e-05,2]
[420862425,1776658242120,-784.15865975,9.923e-05,2]
[420862426,1776658242130,-776.31707316,9.923e-05,2]
[420862427,1776658242139,-776.31707316,9.923e-05,2]
[420862428,1776658242148,-776.31707316,9.923e-05,2]
[420862429,1776658242158,-776.31707316,9.923e-05,2]
[420862430,1776658242167,-776.31707316,9.923e-05,2]
[420862431,1776658242177,-776.31707316,9.923e-05,2]
[420862432,1776658242187,-776.31707316,9.923e-05,2]
[420862433,1776658242196,-776.31707316,9.923e-05,2]
[420862434,1776658242206,-776.31707316,9.923e-05,2]
[420862435,1776658242215,-776.31707316,9.923e-05,2]
[420862436,1776658242225,-776.31707316,9.923e-05,2]
[420862437,1776658242234,-776.31707316,9.923e-05,2]
[420862438,1776658242244,-776.31707316,9.923e-05,2]
[420862439,1776658242253,-776.31707316,9.923e-05,2]
[420862440,1776658242263,-776.31707316,9.923e-05,2]
[420862441,1776658242273,-776.31707316,9.923e-05,2]
[420862442,1776658242282,-776.31707316,9.923e-05,2]
[420862443,1776658242292,-776.31707316,9.923e-05,2]
[420862444,1776658242301,-776.31707316,9.923e-05,2]
[420862445,1776658242310,-776.31707316,9.923e-05,2]
[420862446,1776658242320,-776.31707316,9.923e-05,2]
[420862447,1776658242329,-776.31707316,9.923e-05,2]
[420862448,1776658242339,-776.31707316,9.923e-05,2]
[420862449,1776658242348,-776.31707316,9.923e-05,2]
[420862450,1776658242358,-776.31707316,9.923e-05,2]
[420862451,1776658242367,-776.31707316,9.923e-05,2]
[420862452,1776658242376,-776.31707316,9.923e-05,2]
[420862453,1776658242386,-776.31707316,9.923e-05,2]
[420862454,1776658242396,-360.96132686,9.923e-05,2]
[420862455,1776658242616,-415.3557463,9.923e-05,2]
[420862456,1776658242625,-215.4180261,9.923e-05,2]
[420862457,1776658242648,-458.87313864,9.923e-05,2]
[420862458,1776658242659,-109.86749501,9.923e-05,2]
[420862459,1776658242669,-500.0,9.923e-05,2]
[420862460,1776658242678,-208.5774836,9.923e-05,2]
[420862461,1776658242688,-839.8339246,9.923e-05,2]
[420862462,1776658242697,-839.8339246,9.923e-05,2]
[420862463,1776658242707,-684.04661455,9.923e-05,2]
[420862464,1776658242718,-155.78731005,9.923e-05,2]
[420862465,1776658242728,-278.04138803,9.923e-05,2]
[420862466,1776658242743,-561.79253657,9.923e-05,2]
[420862467,1776658242752,-839.8339246,9.923e-05,2]
[420862468,1776658242761,-839.8339246,9.923e-05,2]
[420862469,1776658242771,-839.8339246,9.923e-05,2]
[420862470,1776658242780,-839.8339246,9.923e-05,2]
[420862471,1776658242789,-839.8339246,9.923e-05,2]
[420862472,1776658242799,-839.8339246,9.923e-05,2]
[420862473,1776658242808,-500.0,9.923e-05,2]
[420862474,1776658242817,-500.0,9.923e-05,2]
[420862475,1776658242827,-500.0,9.923e-05,2]
[420862477,1776658242836,-201.46958291,9.923e-05,2]
[420862479,1776658242847,-1506.691654,9.924e-05,2]
[420862480,1776658242856,-13732.90831775,9.924e-05,2]
[420862481,1776658242868,-1146.36127367,9.924e-05,2]
[420862482,1776658242880,-272.24010028,9.924e-05,2]
[420862485,1776658242903,-2565.98624479,9.924e-05,2]
[420862487,1776658242915,-3114.16252253,9.924e-05,2]
[420862490,1776658242932,-1979.65645078,9.924e-05,2]
[420862492,1776658242950,-3046.82868942,9.924e-05,2]
[420862494,1776658242962,-289630.7873,9.924e-05,2]
[420862496,1776658242974,-649.29216344,9.924e-05,2]
[420862498,1776658242985,-920.51348374,9.924e-05,2]
[420862500,1776658242996,-3575.413935,9.924e-05,2]
[420862508,1776658243099,-66530.06152172,9.924e-05,2]
[420862509,1776658243111,-66507.53969688,9.924e-05,2]
[420862510,1776658243121,-3110.04328174,9.929e-05,2]
[420862511,1776658243132,-2155.4755418,9.978e-05,2]
[420862512,1776658243142,-150.0,9.99e-05,2]
[420862513,1776658243153,-150.0,9.99e-05,2]
[420862514,1776658243163,-204.86898128,0.0001,2]
[420862515,1776658243174,-900.0,0.0001,3]
[420862516,1776658243185,-151.0,0.0001,2]
[420862517,1776658243195,-151.0,0.0001,2]
[420862518,1776658243204,-151.0,0.0001,2]
[420862519,1776658243214,-151.0,0.0001,2]
[420862520,1776658243224,-151.0,0.0001,2]
[420862521,1776658243233,-151.0,0.0001,2]
[420862522,1776658243243,-151.0,0.0001,2]
[420862523,1776658243252,-151.0,0.0001,2]
[420862524,1776658243262,-242.11606108,0.0001,2]
[420862525,1776658243272,-171.94,0.0001,2]
[420862526,1776658243281,-339.0,0.0001,2]
[420862527,1776658243291,-339.0,0.0001,2]
[420862528,1776658243300,-339.20837184,0.0001,2]
[420862529,1776658243309,-5000.0,0.00010024,2]
[420862530,1776658243318,-5000.0,0.00010024,2]
[420862531,1776658243327,-250.0,0.00010024,2]
[420862532,1776658243336,-150.0,0.00010042,2]
[420862533,1776658243346,-712.9182,0.00010074,2]
[420862534,1776658243356,-2500.0,0.00010075,2]
[420862535,1776658243366,-5000.0,0.00010075,2]
[420862536,1776658243375,-150.0,0.00010076,2]
[420862537,1776658243384,-467.0,0.00010082,2]
[420862538,1776658243393,-369.0,0.00010102,2]
[420862539,1776658243402,-1403.0,0.00010122,2]
[420862540,1776658243412,-5779.0,0.00010137,2]
[420862541,1776658243421,-804.0,0.00010142,2]
[420862542,1776658243430,-420.0,0.00010143,2]
[420862543,1776658243440,-420.0,0.00010143,2]
[420862544,1776658243450,-809.0,0.00010163,2]
[420862545,1776658243459,-500.0,0.00010164,2]
[420862546,1776658243468,-151.0,0.00010172,2]
[420862547,1776658243478,-151.0,0.00010172,2]
[420862548,1776658243487,-500.52663571,0.00010173,2]
[420862549,1776658243496,-500.76315893,0.00010173,2]
[420862550,1776658243506,-500.0,0.00010173,2]
[420862551,1776658243515,-623.12203652,0.00010173,2]
[420862552,1776658243524,-160.10522482,0.00010173,2]
[420862553,1776658243534,-160.08252796,0.00010173,2]
[420862554,1776658243543,-160.10991368,0.00010173,2]
[420862555,1776658243552,-500.0,0.00010174,2]
[420862556,1776658243561,-500.0,0.00010174,2]
[420862557,1776658243571,-489.49259355,0.00010174,2]
[420862558,1776658243579,-639.27475686,0.00010174,2]
[420862559,1776658243588,-307.95955072,0.00010174,2]
[420862560,1776658243598,-195.24250796,0.00010174,2]
[420862561,1776658243607,-533.85333846,0.00010174,2]
[420862562,1776658243617,-500.0,0.00010174,2]
[420862563,1776658243626,-372.71444181,0.00010175,2]
[420862564,1776658243635,-12685.34890756,0.00010175,2]
[420862565,1776658243644,-993.0,0.00010175,5]
[420862566,1776658243653,-155.0,0.00010192,3]
[420862567,1776658243662,-638.0,0.00010247,2]
[420862568,1776658243671,-154.18753749,0.00010247,2]
[420862569,1776658243680,-272.37824658,0.00010247,2]
[420862571,1776658243689,-153.51184745,0.00010247,2]
[420862573,1776658243699,-150.0,0.00010247,2]
[420862575,1776658243709,-150.0,0.00010247,2]
[420862577,1776658243718,-150.56733902,0.00010247,2]
[420862578,1776658243727,-228.14003435,0.00010247,2]
[420862581,1776658243737,-150.0,0.00010247,2]
[420862583,1776658243747,-154.11355958,0.00010247,2]
[420862584,1776658243756,-249.004,0.00010268,2]
[420862586,1776658243765,-500.70650886,0.00010268,2]
[420862588,1776658243774,-1000.0,0.00010275,2]
[420862591,1776658243784,-582.89569906,0.00010381,2]
[420862593,1776658243793,-1328.27659266,0.00010381,2]
[420862594,1776658243816,-670.58624095,0.00010381,2]
[420862595,1776658243826,-500.0,0.00010381,2]
[420862596,1776658243835,-151.0,0.00010381,2]
[420862597,1776658243844,-778.07937685,0.00010381,2]
[420862598,1776658244256,-1221.92062315,0.00010381,2]
[420862599,1776658244265,-1000.0,0.00010381,2]
[420862600,1776658244275,-279.9045709,0.00010381,2]
[420862601,1776658244284,-118.09701105,0.00010381,2]
[420862602,1776658244302,-76.63091661,0.00010381,2]
[420862603,1776658244312,-255.0,0.00010425,2]
[420862604,1776658244322,-296.80717601,0.00010436,2]
[420862607,1776658246061,-203.19282399,0.00010436,2]
[420862608,1776658246071,-151.0,0.00010436,2]
[420862609,1776658246080,-425.16184594,0.00010438,2]
[420862610,1776658246090,-888.80058003,0.00010451,2]
[420862611,1776658246118,-111.19941997,0.00010451,2]
[420862612,1776658246127,-1000.0,0.00010451,2]
[420862613,1776658246137,-503.11614129,0.00010451,2]
[420862614,1776658246147,-1000.0,0.00010451,2]
[420862615,1776658246156,-1117.65361878,0.00010451,2]
[420862616,1776658246166,-501.86229103,0.00010451,2]
[420862617,1776658246175,-164.58735598,0.00010451,2]
[420862618,1776658246185,-1000.0,0.00010451,2]
[420862619,1776658246194,-308.3237,0.00010486,2]
[420862620,1776658246204,-196.772163,0.00010486,2]
[420862621,1776658246213,-239.184446,0.00010486,2]
[420862622,1776658246223,-475.164534,0.00010486,2]
[420862623,1776658246232,-463.552359,0.00010486,2]
[420862624,1776658246247,-300.372062,0.00010486,2]
[420862625,1776658246257,-500.0,0.00010491,2]
[420862626,1776658246267,-151.0,0.00010491,2]
[420862627,1776658246277,-2317.81022638,0.00010504,2]
[420862628,1776658246289,-370.45,0.00010504,2]
[420862629,1776658246553,-339.78977362,0.00010504,2]
[420862630,1776658246563,-500.0,0.00010546,2]
[420862631,1776658246572,-166.92,0.00010571,2]
[420862632,1776658246582,-102.39932638,0.00010601,2]
[420862633,1776658246599,-397.60067362,0.00010601,2]
[420862634,1776658246610,-500.0,0.00010656,2]
[420862635,1776658246620,-220.7308107,0.0001069,2]
[420862637,1776658246630,-4544.97489417,0.000107,2]
[420862639,1776658246647,-698.06429377,0.000107,2]
[420862640,1776658246658,-1280.3099978,0.000107,2]
[420862641,1776658246671,-3790.63656865,0.000107,2]
[420862642,1776658246683,-1200.39581154,0.000107,2]
[420862643,1776658246704,-23291.23450175,0.000107,2]
[420862644,1776658246717,-540.74393397,0.000107,2]
[420862653,1776658401622,500.0,8.616e-05,2]
[420862654,1776658511705,155.0,8.616e-05,3]
[420862656,1776658568392,155.0,8.616e-05,3]
[420862657,1776658625111,155.0,8.616e-05,3]
[420862658,1776658687183,155.0,8.616e-05,3]
[420862659,1776658737747,-3242.14,8.934e-05,2]
[420862660,1776658750335,155.0,8.616e-05,3]
[420862661,1776658809160,155.0,8.616e-05,3]
[420862662,1776658872507,155.0,8.616e-05,3]
[420862664,1776659059079,-5321.92518185,8.934e-05,2]
[420862665,1776659059208,-10000.01,8.934e-05,2]
[420862666,1776659059327,-10000.01,8.934e-05,2]
[420862667,1776659065070,-10000.01,8.934e-05,2]
[420862668,1776659065193,-593.31481815,8.934e-05,2]
[420862669,1776659065224,-1600.0,8.934e-05,2]
[420862671,1776659170481,150.0,8.77e-05,2]
[420862672,1776659234550,150.0,8.707e-05,2]
[420862673,1776659247557,-150.0,8.778e-05,2]
[420862674,1776659247580,-150.0,8.778e-05,2]
[420862675,1776659247603,-150.0,8.778e-05,2]
[420862676,1776659247626,-150.0,8.778e-05,2]
[420862677,1776659247648,-93.41394637,8.778e-05,2]
[420862679,1776659410479,154.42923073,0.00016226,30]
[420862697,1776659432340,-56.58605363,8.778e-05,2]
[420862698,1776659432350,-250.0,8.856e-05,2]
[420862699,1776659432360,-2000.0,8.934e-05,2]
[420862700,1776659432370,-150.0,9.007e-05,2]
[420862701,1776659432380,-250.0,9.045e-05,2]
[420862702,1776659432390,-200.0,9.2e-05,2]
[420862703,1776659432399,-150.0,9.307e-05,2]
[420862704,1776659432409,-183.0,9.467e-05,2]
[420862705,1776659432418,-187.61485971,9.468e-05,2]
[420862729,1776659438586,-112.38514029,9.468e-05,2]
[420862730,1776659438596,-300.0,9.468e-05,2]
[420862731,1776659438606,-1200.0,9.468e-05,2]
[420862732,1776659438615,-2367.82577953,9.469e-05,2]
[420862839,1776659441581,-175.98122047,9.469e-05,2]
[420862840,1776659441591,-197.406,9.469e-05,2]
[420862841,1776659441601,-500.0,9.476e-05,2]
[420862842,1776659441611,-1010.75019067,9.561e-05,2]
[420862843,1776659441626,-1303.64074537,9.561e-05,2]
[420862844,1776659441657,-37685.64906396,9.561e-05,2]
[420862845,1776659441667,-5000.0,9.562e-05,2]
[420862846,1776659441676,-2500.0,9.562e-05,2]
[420862847,1776659441686,-357.7567,9.562e-05,2]
[420862848,1776659441695,-165.12276016,9.656e-05,2]
[420862849,1776659441704,-5051.52787188,9.656e-05,2]
[420862850,1776659441713,-250.0,9.656e-05,2]
[420862851,1776659441723,-250.0,9.661e-05,2]
[420862852,1776659441732,-1000.0,9.661e-05,2]
[420862853,1776659441742,-500.0,9.661e-05,2]
[420862854,1776659441751,-299.35247439,9.661e-05,2]
[420862855,1776659441761,-500.0,9.661e-05,2]
[420862856,1776659441770,-500.0,9.661e-05,2]
[420862857,1776659441780,-500.0,9.661e-05,2]
[420862858,1776659441789,-500.0,9.661e-05,2]
[420862859,1776659441798,-500.0,9.661e-05,2]
[420862860,1776659441807,-500.0,9.661e-05,2]
[420862861,1776659441816,-500.0,9.661e-05,2]
[420862862,1776659441826,-500.0,9.661e-05,2]
[420862863,1776659441836,-500.0,9.661e-05,2]
[420862864,1776659441846,-500.0,9.661e-05,2]
[420862865,1776659441857,-500.0,9.661e-05,2]
[420862866,1776659441866,-500.0,9.661e-05,2]
[420862867,1776659441876,-500.0,9.661e-05,2]
[420862868,1776659441886,-500.0,9.661e-05,2]
[420862869,1776659441896,-500.0,9.661e-05,2]
[420862870,1776659441906,-500.0,9.661e-05,2]
[420862871,1776659441915,-500.0,9.661e-05,2]
[420862872,1776659441925,-500.0,9.661e-05,2]
[420862873,1776659441936,-500.0,9.661e-05,2]
[420862874,1776659441946,-500.0,9.661e-05,2]
[420862875,1776659441956,-500.0,9.661e-05,2]
[420862876,1776659441966,-500.0,9.661e-05,2]
[420862877,1776659441976,-500.0,9.661e-05,2]
[420862878,1776659441986,-500.0,9.661e-05,2]
[420862879,1776659441996,-500.0,9.661e-05,2]
[420862880,1776659442006,-500.0,9.661e-05,2]
[420862881,1776659442016,-500.0,9.661e-05,2]
[420862882,1776659442025,-500.0,9.661e-05,2]
[420862883,1776659442035,-500.0,9.661e-05,2]
[420862884,1776659442045,-500.0,9.661e-05,2]
[420862885,1776659442054,-500.0,9.661e-05,2]
[420862886,1776659442063,-500.0,9.661e-05,2]
[420862887,1776659442073,-500.0,9.661e-05,2]
[420862888,1776659442083,-500.0,9.661e-05,2]
[420862889,1776659442092,-500.0,9.661e-05,2]
[420862890,1776659442102,-500.0,9.661e-05,2]
[420862891,1776659442112,-500.0,9.661e-05,2]
[420862892,1776659442122,-500.0,9.661e-05,2]
[420862893,1776659442131,-500.0,9.661e-05,2]
[420862894,1776659442141,-500.0,9.661e-05,2]
[420862895,1776659442150,-500.0,9.661e-05,2]
[420862896,1776659442160,-500.0,9.661e-05,2]
[420862897,1776659442169,-500.0,9.661e-05,2]
[420862898,1776659442179,-500.0,9.661e-05,2]
[420862899,1776659442188,-500.0,9.661e-05,2]
[420862900,1776659442197,-500.0,9.661e-05,2]
[420862901,1776659442207,-500.0,9.661e-05,2]
[420862902,1776659442218,-454.38570603,9.661e-05,2]
[420862903,1776659442228,-500.0,9.661e-05,2]
[420862904,1776659442238,-500.0,9.661e-05,2]
[420862905,1776659442247,-500.0,9.661e-05,2]
[420862906,1776659442256,-500.0,9.661e-05,2]
[420862907,1776659442266,-500.0,9.661e-05,2]
[420862908,1776659442275,-500.0,9.661e-05,2]
[420862909,1776659442284,-500.0,9.661e-05,2]
[420862910,1776659442294,-500.0,9.661e-05,2]
[420862911,1776659442303,-500.0,9.661e-05,2]
[420862912,1776659442313,-500.0,9.661e-05,2]
[420862913,1776659442322,-500.0,9.661e-05,2]
[420862914,1776659442332,-188.32406206,9.661e-05,2]
[420862915,1776659442341,-261.76,9.661e-05,2]
[420862916,1776659442351,-14235.0,9.726e-05,2]
[420862917,1776659442360,-160.35239601,9.743e-05,2]
[420862918,1776659442370,-500.0,9.743e-05,2]
[420862919,1776659442379,-500.0,9.743e-05,2]